lending/lending_fUSD_20240603
["ID","MTS","AMOUNT","RATE_DAILY","PERIOD"]
[328482583,1717432241081,-500.0,0.00033299,13]
[328482584,1717432241091,-551.31,0.00033299,13]
[328482585,1717432241100,-500.0,0.00033299,13]
[328482586,1717432241110,-500.0,0.00033299,13]
[328482587,1717432241121,-551.31,0.00033299,13]
[328482588,1717432241131,-500.0,0.00033299,13]
[328482589,1717432241141,-551.31,0.00033299,13]
[328482590,1717432241150,-551.31,0.00033299,13]
[328482591,1717432241159,-551.31,0.00033299,13]
[328482592,1717432241169,-551.31,0.00033299,13]
[328482593,1717432241179,-551.31,0.00033299,13]
[328482594,1717432241188,-551.31,0.00033299,13]
[328482595,1717432241198,-551.31,0.00033299,13]
[328482596,1717432241208,-551.31,0.00033299,13]
[328482597,1717432241217,-551.31,0.00033299,13]
[328482598,1717432241227,-551.31,0.00033299,13]
[328482599,1717432241236,-551.31,0.00033299,13]
[328482600,1717432241246,-500.0,0.00033299,13]
[328482601,1717432241256,-551.31,0.00033299,13]
[328482602,1717432241267,-500.0,0.00033299,13]
[328482603,1717432241277,-551.31,0.00033299,13]
[328482604,1717432241288,-500.0,0.00033299,13]
[328482605,1717432241298,-500.0,0.00033299,13]
[328482606,1717432241309,-551.31,0.00033299,13]
[328482607,1717432241319,-500.0,0.00033299,13]
[328482608,1717432241328,-551.34481479,0.00033299,13]
[328482609,1717432241340,-500.0,0.00033299,13]
[328482610,1717432241350,-500.0,0.00033299,13]
[328482611,1717432241361,-500.0,0.00033299,13]
[328482612,1717432241371,-500.0,0.00033299,13]
[328482613,1717432241381,-500.0,0.00033299,13]
[328482614,1717432241391,-500.0,0.00033299,13]
[328482615,1717432241401,-500.0,0.00033299,13]
[328482616,1717432241411,-500.0,0.00033299,13]
[328482617,1717432241421,-500.0,0.00033299,13]
[328482618,1717432241431,-500.0,0.00033299,13]
[328482619,1717432241440,-521.86983604,0.00033299,13]
[328482620,1717432241450,-500.0,0.00033299,13]
[328482621,1717432241465,-500.0,0.00033299,13]
[328482622,1717432241475,-500.0,0.00033299,13]
[328482623,1717432241485,-500.0,0.00033299,13]
[328482624,1717432241494,-500.0,0.00033299,13]
[328482625,1717432241505,-500.0,0.00033299,13]
[328482626,1717432241515,-500.0,0.00033299,13]
[328482627,1717432241525,-500.0,0.00033299,13]
[328482628,1717432241534,-528.28,0.00033299,13]
[328482629,1717432241546,-421.05632767,0.00033299,13]
[328482630,1717432241556,-689.3,0.00033299,2]
[328482631,1717432241566,-689.3,0.00033299,2]
[328482632,1717432241576,-689.3,0.00033299,2]
[328482633,1717432241587,-689.3,0.00033299,2]
[328482634,1717432241596,-689.3,0.00033299,2]
[328482635,1717432241607,-689.3,0.00033299,2]
[328482636,1717432241616,-689.3,0.00033299,2]
[328482637,1717432241626,-689.3,0.00033299,2]
[328482638,1717432241635,-689.3,0.00033299,2]
[328482639,1717432241646,-689.3,0.00033299,2]
[328482640,1717432241656,-689.3,0.00033299,2]
[328482641,1717432241666,-689.3,0.00033299,2]
[328482642,1717432241675,-689.3,0.00033299,2]
[328482643,1717432241686,-689.3,0.00033299,2]
[328482644,1717432241696,-689.3,0.00033299,2]
[328482645,1717432241705,-689.3,0.00033299,2]
[328482646,1717432241716,-689.3,0.00033299,2]
[328482647,1717432241726,-689.3,0.00033299,2]
[328482648,1717432241736,-689.3,0.00033299,2]
[328482649,1717432241746,-689.3,0.00033299,2]
[328482650,1717432241756,-689.3,0.00033299,2]
[328482651,1717432241766,-689.31,0.00033299,2]
[328482652,1717432241776,-1676.3,0.00033299,13]
[328482653,1717432241787,-1676.3,0.00033299,13]
[328482654,1717432241796,-1676.3,0.00033299,13]
[328482655,1717432241806,-1676.3,0.00033299,13]
[328482656,1717432241816,-1676.3,0.00033299,13]
[328482657,1717432241826,-1676.3,0.00033299,13]
[328482658,1717432241837,-1676.3,0.00033299,13]
[328482659,1717432241846,-1676.3,0.00033299,13]
[328482660,1717432241856,-1676.3,0.00033299,13]
[328482661,1717432241866,-1676.3,0.00033299,13]
[328482662,1717432241875,-1676.3,0.00033299,13]
[328482663,1717432241884,-1676.3,0.00033299,13]
[328482664,1717432241895,-1676.3,0.00033299,13]
[328482665,1717432241905,-1676.3,0.00033299,13]
[328482666,1717432241915,-1676.3,0.00033299,13]
[328482667,1717432241925,-1676.3,0.00033299,13]
[328482668,1717432241936,-1676.3,0.00033299,13]
[328482669,1717432241946,-500.0,0.00033299,13]
[328482670,1717432241956,-1676.3,0.00033299,13]
[328482671,1717432241965,-1676.3,0.00033299,13]
[328482672,1717432241975,-500.0,0.00033299,13]
[328482673,1717432241985,-500.0,0.00033299,13]
[328482674,1717432241995,-500.0,0.00033299,13]
[328482675,1717432242004,-1676.3,0.00033299,13]
[328482676,1717432242014,-500.0,0.00033299,13]
[328482677,1717432242024,-500.0,0.00033299,13]
[328482678,1717432242035,-500.0,0.00033299,13]
[328482679,1717432242045,-500.0,0.00033299,13]
[328482680,1717432242056,-500.0,0.00033299,13]
[328482681,1717432242066,-1676.5064,0.00033299,13]
[328482682,1717432242075,-500.0,0.00033299,13]
[328482683,1717432242086,-500.0,0.00033299,13]
[328482684,1717432242095,-500.0,0.00033299,13]
[328482685,1717432242105,-500.0,0.00033299,13]
[328482686,1717432242115,-500.0,0.00033299,13]
[328482687,1717432242125,-500.0,0.00033299,13]
[328482688,1717432242134,-500.0,0.00033299,13]
[328482690,1717432242144,-500.0,0.00033299,13]
[328482692,1717432242153,-500.0,0.00033299,13]
[328482694,1717432242162,-500.0,0.00033299,13]
[328482697,1717432242173,-500.0,0.00033299,13]
[328482699,1717432242182,-500.0,0.00033299,13]
[328482700,1717432242192,-500.0,0.00033299,13]
[328482703,1717432242202,-500.0,0.00033299,13]
[328482704,1717432242212,-500.0,0.00033299,13]
[328482706,1717432242222,-500.0,0.00033299,13]
[328482708,1717432242232,-500.0,0.00033299,13]
[328482711,1717432242242,-500.0,0.00033299,13]
[328482713,1717432242252,-463.4745309,0.00033299,13]
[328482714,1717432242262,-2784.31,0.00033299,13]
[328482715,1717432242273,-2784.31,0.00033299,13]
[328482716,1717432242283,-2784.31,0.00033299,13]
[328482717,1717432242293,-2784.31,0.00033299,13]
[328482718,1717432242303,-2784.31,0.00033299,13]
[328482719,1717432242314,-2784.31,0.00033299,13]
[328482720,1717432242324,-2784.31,0.00033299,13]
[328482721,1717432242337,-2784.31,0.00033299,13]
[328482722,1717432242347,-2784.31,0.00033299,13]
[328482723,1717432242358,-2784.31,0.00033299,13]
[328482724,1717432242367,-2784.31,0.00033299,13]
[328482725,1717432242378,-2784.31,0.00033299,13]
[328482727,1717432242388,-2784.31,0.00033299,13]
[328482729,1717432242399,-2784.31,0.00033299,13]
[328482731,1717432242409,-2784.31,0.00033299,13]
[328482733,1717432242419,-2784.31,0.00033299,13]
[328482735,1717432242429,-2784.31,0.00033299,13]
[328482737,1717432242439,-2784.31,0.00033299,13]
[328482739,1717432242449,-2784.31,0.00033299,13]
[328482741,1717432242460,-2784.31,0.00033299,13]
[328482743,1717432242475,-2784.47890472,0.00033299,13]
[328482745,1717432242485,-1484.23,0.00033299,13]
[328482747,1717432242495,-1484.23,0.00033299,13]
[328482749,1717432242504,-1484.23,0.00033299,13]
[328482751,1717432242515,-1484.23,0.00033299,13]
[328482753,1717432242525,-1484.23,0.00033299,13]
[328482755,1717432242535,-1484.23,0.00033299,13]
[328482756,1717432242546,-1484.23,0.00033299,13]
[328482757,1717432242556,-1484.23,0.00033299,13]
[328482758,1717432242567,-1484.23,0.00033299,13]
[328482759,1717432242576,-1484.23,0.00033299,13]
[328482760,1717432242588,-500.0,0.00033299,13]
[328482761,1717432242598,-1484.23,0.00033299,13]
[328482762,1717432242608,-500.0,0.00033299,13]
[328482763,1717432242618,-1484.23,0.00033299,13]
[328482764,1717432242628,-500.0,0.00033299,13]
[328482765,1717432242638,-1484.23,0.00033299,13]
[328482766,1717432242648,-500.0,0.00033299,13]
[328482767,1717432242658,-1484.23,0.00033299,13]
[328482768,1717432242669,-500.0,0.00033299,13]
[328482769,1717432242679,-1484.23,0.00033299,13]
[328482770,1717432242689,-500.0,0.00033299,13]
[328482771,1717432242699,-1484.23,0.00033299,13]
[328482772,1717432242709,-500.0,0.00033299,13]
[328482773,1717432242719,-1484.23,0.00033299,13]
[328482774,1717432242729,-500.0,0.00033299,13]
[328482775,1717432242739,-1484.23,0.00033299,13]
[328482776,1717432242750,-500.0,0.00033299,13]
[328482777,1717432242760,-500.0,0.00033299,13]
[328482778,1717432242770,-1484.23,0.00033299,13]
[328482779,1717432242779,-553.28587037,0.00033299,13]
[328482780,1717432242789,-568.06,0.00033299,13]
[328482781,1717432242798,-604.42,0.00033299,13]
[328482782,1717432242808,-1484.23,0.00033299,13]
[328482783,1717432242818,-604.42,0.00033299,13]
[328482784,1717432242827,-1484.46167761,0.00033299,13]
[328482785,1717432242840,-604.42,0.00033299,13]
[328482786,1717432242850,-604.42,0.00033299,13]
[328482787,1717432242861,-604.42,0.00033299,13]
[328482788,1717432242871,-604.42,0.00033299,13]
[328482789,1717432242880,-604.42,0.00033299,13]
[328482790,1717432242890,-604.42,0.00033299,13]
[328482791,1717432242900,-604.42,0.00033299,13]
[328482792,1717432242911,-604.42,0.00033299,13]
[328482793,1717432242921,-604.42,0.00033299,13]
[328482794,1717432242930,-604.42,0.00033299,13]
[328482795,1717432242940,-604.42,0.00033299,13]
[328482796,1717432242951,-604.42,0.00033299,13]
[328482797,1717432242961,-604.42,0.00033299,13]
[328482798,1717432242972,-604.42,0.00033299,13]
[328482799,1717432242982,-604.42,0.00033299,13]
[328482800,1717432242992,-604.42,0.00033299,13]
[328482801,1717432243003,-604.42,0.00033299,13]
[328482802,1717432243013,-604.42,0.00033299,13]
[328482803,1717432243024,-604.56,0.00033299,13]
[328482804,1717432243034,-500.0,0.00033299,13]
[328482805,1717432243043,-500.0,0.00033299,13]
[328482806,1717432243053,-500.0,0.00033299,13]
[328482807,1717432243063,-500.0,0.00033299,13]
[328482808,1717432243073,-500.0,0.00033299,13]
[328482809,1717432243083,-500.0,0.00033299,13]
[328482810,1717432243094,-500.0,0.00033299,13]
[328482811,1717432243105,-500.0,0.00033299,13]
[328482812,1717432243115,-720.74,0.00033299,13]
[328482813,1717432243124,-500.0,0.00033299,13]
[328482814,1717432243134,-720.74,0.00033299,13]
[328482816,1717432243144,-720.74,0.00033299,13]
[328482818,1717432243154,-500.0,0.00033299,13]
[328482819,1717432243164,-720.74,0.00033299,13]
[328482820,1717432243173,-500.0,0.00033299,13]
[328482821,1717432243183,-720.74,0.00033299,13]
[328482822,1717432243192,-500.0,0.00033299,13]
[328482823,1717432243202,-500.0,0.00033299,13]
[328482824,1717432243212,-720.74,0.00033299,13]
[328482825,1717432243222,-500.0,0.00033299,13]
[328482826,1717432243231,-500.0,0.00033299,13]
[328482827,1717432243241,-500.0,0.00033299,13]
[328482828,1717432243252,-584.08,0.00033299,13]
[328482830,1717432243262,-500.0,0.00033299,13]
[328482831,1717432243271,-720.74,0.00033299,13]
[328482832,1717432243281,-500.0,0.00033299,13]
[328482833,1717432243291,-720.74,0.00033299,13]
[328482834,1717432243301,-829.94,0.00033299,13]
[328482835,1717432243311,-500.0,0.00033299,13]
[328482836,1717432243320,-720.74,0.00033299,13]
[328482837,1717432243330,-500.0,0.00033299,13]
[328482838,1717432243341,-829.94,0.00033299,13]
[328482839,1717432243352,-720.74,0.00033299,13]
[328482840,1717432243361,-500.0,0.00033299,2]
[328482841,1717432243372,-466.76456454,0.00033299,13]
[328482842,1717432243382,-829.94,0.00033299,13]
[328482843,1717432243392,-720.74,0.00033299,13]
[328482844,1717432243402,-500.0,0.00033299,2]
[328482845,1717432243412,-829.94,0.00033299,13]
[328482846,1717432243421,-720.74,0.00033299,13]
[328482847,1717432243431,-500.0,0.00033299,2]
[328482848,1717432243440,-829.94,0.00033299,13]
[328482849,1717432243450,-720.74,0.00033299,13]
[328482850,1717432243462,-500.0,0.00033299,2]
[328482851,1717432243477,-829.94,0.00033299,13]
[328482852,1717432243488,-720.74,0.00033299,13]
[328482853,1717432243499,-500.0,0.00033299,2]
[328482854,1717432243511,-720.74,0.00033299,13]
[328482855,1717432243521,-829.94,0.00033299,13]
[328482856,1717432243532,-500.0,0.00033299,2]
[328482857,1717432243545,-720.74,0.00033299,13]
[328482858,1717432243681,-829.94,0.00033299,13]
[328482859,1717432243692,-500.0,0.00033299,2]
[328482860,1717432243702,-720.74,0.00033299,13]
[328482861,1717432243714,-829.94,0.00033299,13]
[328482862,1717432243723,-500.0,0.00033299,2]
[328482863,1717432243733,-829.94,0.00033299,13]
[328482864,1717432243743,-720.74,0.00033299,13]
[328482865,1717432243752,-500.0,0.00033299,2]
[328482866,1717432243762,-829.94,0.00033299,13]
[328482867,1717432243771,-720.74,0.00033299,13]
[328482868,1717432243782,-500.0,0.00033299,2]
[328482869,1717432243791,-829.94,0.00033299,13]
[328482870,1717432243802,-720.74,0.00033299,13]
[328482871,1717432243812,-500.0,0.00033299,2]
[328482872,1717432243822,-829.94,0.00033299,13]
[328482873,1717432243831,-720.93396683,0.00033299,13]
[328482874,1717432243843,-500.0,0.00033299,2]
[328482875,1717432243854,-829.94,0.00033299,13]
[328482876,1717432243863,-442.45411935,0.00033299,2]
[328482877,1717432243873,-829.94,0.00033299,13]
[328482878,1717432243882,-829.94,0.00033299,13]
[328482879,1717432243892,-829.94,0.00033299,13]
[328482880,1717432243902,-829.94,0.00033299,13]
[328482881,1717432243911,-829.94,0.00033299,13]
[328482882,1717432243921,-829.94,0.00033299,13]
[328482883,1717432243931,-830.0469,0.00033299,13]
[328482884,1717432243940,-172.22256923,0.00033299,13]
[328482885,1717432243949,-347791.20531664,0.000333,5]
[328482886,1717432243973,-256498.89095465,0.000333,5]
[328482889,1717432244194,-165.698,0.00030563,2]
[328482891,1717432244204,-165.698,0.00032167,2]
[328482893,1717432244213,-667.69047213,0.00032622,10]
[328482895,1717432244225,-137.52952787,0.00032622,10]
[328482896,1717432244235,-500.0,0.00032899,13]
[328482897,1717432244244,-500.0,0.00032921,2]
[328482898,1717432244254,-323.1648529,0.00033154,2]
[328482899,1717432244264,-500.0,0.00033296,2]
[328482900,1717432244273,-500.0,0.00033298,2]
[328482901,1717432244282,-500.0,0.00033299,2]
[328482902,1717432244292,-500.0,0.00033299,2]
[328482903,1717432244301,-500.0,0.00033299,2]
[328482904,1717432244310,-500.0,0.00033299,2]
[328482905,1717432244319,-500.0,0.00033299,2]
[328482906,1717432244329,-500.0,0.00033299,2]
[328482907,1717432244339,-500.0,0.00033299,2]
[328482908,1717432244348,-500.0,0.00033299,2]
[328482909,1717432244358,-500.0,0.00033299,2]
[328482910,1717432244367,-500.0,0.00033299,2]
[328482911,1717432244376,-500.0,0.00033299,2]
[328482912,1717432244386,-503.15089632,0.00033299,2]
[328482913,1717432244395,-114467.00261988,0.000333,5]
[328482914,1717432244406,-11351.10393456,0.000333,5]
[328482915,1717432244417,-311.184893,0.000333,5]
[328482916,1717432244428,-2655.39608266,0.000333,5]
[328482917,1717432244444,-769.96443153,0.000333,5]
[328482918,1717432244457,-303939.6692737,0.000333,5]
[328482919,1717432244471,-220621.45411041,0.000333,5]
[328482920,1717432244483,-1773.89999982,0.000333,5]
[328482921,1717432244494,-4345.64921609,0.000333,5]
[328482922,1717432244507,-561.82928208,0.000333,5]
[328482923,1717432244624,-1463.0,0.00032961,2]
[328482924,1717432244633,-98.91364642,0.00033298,2]
[328482925,1717432244644,-51.09635358,0.00033298,2]
[328482926,1717432244653,-2454.94273917,0.000333,5]
[328482927,1717432244665,-1146.69328221,0.000333,5]
[328482928,1717432244677,-172414.10342185,0.000333,5]
[328482929,1717432244822,-839.10109103,0.00033298,2]
[328482938,1717432246277,-573.43013765,0.00032961,2]
[328482948,1717432246995,-1077.50586235,0.00032961,2]
[328482949,1717432247005,-1136.4666728,0.00033298,2]
[328482950,1717432247014,-187852.63932294,0.000333,5]
[328482951,1717432247026,-2214.51208043,0.000333,5]
[328482952,1717432247037,-1613.43942609,0.000333,5]
[328482953,1717432247048,-771.35217353,0.000333,5]
[328482954,1717432247059,-7416.22672899,0.000333,5]
[328482955,1717432247070,-138651.99999999,0.000333,5]
[328482956,1717432247081,-1836.13526962,0.000333,5]
[328482958,1717432252628,1337.85074862,0.00017259,2]
[328482975,1717432600628,483786.57159892,0.00014,2]
[328483560,1717433431515,-234.28229567,0.00017258,2]
[328483561,1717433431526,-820.43769151,0.00017259,2]
[328483562,1717433431539,-654.55121628,0.00017259,2]
[328483563,1717433431552,-3782.98026134,0.00017259,2]
[328483564,1717433431563,-162.29,0.00021397,2]
[328483565,1717433431574,-952.22867,0.00022984,2]
[328483566,1717433431585,-606.37,0.000231,2]
[328483567,1717433431596,-7773.99,0.000231,2]
[328483568,1717433431607,-1403.05,0.000231,2]
[328483569,1717433431618,-499.99,0.000231,2]
[328483570,1717433431629,-1145.0,0.000237,3]
[328483571,1717433431639,-528.0,0.000237,3]
[328483572,1717433431649,-797.65,0.000237,2]
[328483573,1717433431660,-3467.67,0.000237,2]
[328483574,1717433431671,-2160.68,0.000237,2]
[328483575,1717433431682,-155.11,0.00024384,2]
[328483576,1717433431692,-159.61,0.00024384,2]
[328483577,1717433431703,-2630.34,0.00024567,2]
[328483578,1717433431715,-163.53,0.00024592,2]
[328483579,1717433431726,-560.98,0.00024964,2]
[328483580,1717433431736,-500.0,0.00025902,2]
[328483581,1717433431748,-250.0,0.00026558,2]
[328483582,1717433431758,-21172.45265776,0.00026658,2]
[328483583,1717433431772,-2717.54734224,0.00026658,2]
[328483584,1717433431783,-12319.59,0.00026687,2]
[328483585,1717433431794,-250.0,0.0002669,2]
[328483586,1717433431804,-4472.55,0.0002672,2]
[328483587,1717433431814,-857.89,0.00026741,2]
[328483588,1717433431826,-519.12,0.00026752,2]
[328483589,1717433431837,-152.48,0.00026766,2]
[328483590,1717433431853,-200.0,0.00026841,2]
[328483591,1717433431864,-578.13,0.00026895,2]
[328483592,1717433431875,-150.0,0.00026915,2]
[328483593,1717433431887,-11276.04,0.00026925,2]
[328483594,1717433431898,-882.71956304,0.00027,2]
[328483595,1717433431908,-152.48,0.00027045,2]
[328483596,1717433431921,-714.26,0.00027083,2]
[328483597,1717433431932,-904.0,0.00027083,2]
[328483598,1717433431942,-167.45,0.00027121,2]
[328483599,1717433431953,-560.98,0.00027228,2]
[328483600,1717433431964,-152.48,0.00027324,2]
[328483601,1717433431974,-318.64,0.00027347,2]
[328483602,1717433431984,-1000.0,0.00027383,2]
[328483603,1717433431996,-150.0,0.00027397,2]
[328483604,1717433432008,-152.48,0.00027603,2]
[328483605,1717433432019,-10080.28290112,0.000277,3]
[328483606,1717433432030,-152.48,0.00027882,2]
[328483607,1717433432040,-152.48,0.00028161,2]
[328483608,1717433432050,-150.0,0.00028451,2]
[328483609,1717433432060,-231.32,0.0002898,10]
[328483610,1717433432072,-277.59,0.0002899,10]
[328483611,1717433432082,-8171.58886911,0.00029,2]
[328483612,1717433432095,-273.06418212,0.00029,2]
[328483613,1717433432120,-6977.38992574,0.00029,2]
[328483614,1717433432131,-159.29386833,0.00029411,2]
[328483615,1717433432142,-154.27917163,0.00029433,2]
[328483616,1717433432152,-857.89,0.00029481,2]
[328483617,1717433432163,-560.98,0.00029492,2]
[328483618,1717433432173,-150.0,0.00029505,2]
[328483619,1717433432183,-150.0,0.00029591,2]
[328483620,1717433432404,-159.21505318,0.00029635,2]
[328483621,1717433432425,-171.58213521,0.00029635,2]
[328483622,1717433432435,-156.01670739,0.00029756,2]
[328483623,1717433432445,-153.21613591,0.00029835,2]
[328483624,1717433432455,-2173.7898,0.000299,2]
[328483625,1717433432464,-154.27917163,0.00029901,2]
[328483626,1717433432473,-153.21613591,0.00029965,2]
[328483627,1717433432484,-155.57739022,0.00029968,2]
[328483628,1717433432493,-156.19,0.0002999,2]
[328483629,1717433432502,-9619.42266321,0.0003,2]
[328483630,1717433432608,-5301.53009967,0.0003,2]
[328483631,1717433432620,-1361.45276237,0.0003,2]
[328483632,1717433432631,-1042.16772,0.0003,2]
[328483633,1717433432642,-386.97857912,0.0003,2]
[328483642,1717433437470,-544.49802541,0.0003,2]
[328483643,1717433437482,-157862.18842759,0.0003,2]
[328483644,1717433437492,-19570.60727366,0.0003,2]
[328483645,1717433437502,-686.1864328,0.0003,4]
[328483646,1717433437511,-208.0,0.0003,2]
[328483647,1717433437521,-153.21613591,0.00030242,7]
[328483648,1717433437530,-6162.9829,0.0003038,2]
[328483649,1717433437540,-7500.0,0.0003038,2]
[328483650,1717433437550,-151.894178,0.00030404,2]
[328483651,1717433437559,-152.53,0.0003047,2]
[328483652,1717433437568,-152.53,0.0003047,2]
[328483653,1717433437578,-156.19,0.0003047,2]
[328483654,1717433437587,-156.19,0.0003047,2]
[328483655,1717433437595,-156.19,0.0003047,2]
[328483656,1717433437604,-156.19,0.0003047,2]
[328483657,1717433437614,-156.19,0.0003047,2]
[328483658,1717433437623,-156.19,0.0003047,2]
[328483659,1717433437632,-156.19,0.0003047,2]
[328483660,1717433437641,-152.53,0.0003047,2]
[328483661,1717433437651,-636.84439496,0.00030477,2]
[328483662,1717433437660,-437.65949493,0.00030478,4]
[328483663,1717433437669,-1247.36037009,0.00030478,4]
[328483664,1717433437679,-2044.70234526,0.00030478,4]
[328483665,1717433437688,-500.0,0.00030479,2]
[328483666,1717433437698,-519.36944184,0.00030479,2]
[328483667,1717433437707,-500.0,0.00030479,2]
[328483668,1717433437716,-343.55675741,0.00030479,2]
[328483669,1717433437726,-279.61595813,0.00030479,2]
[328483670,1717433437735,-500.0,0.00030479,2]
[328483671,1717433437744,-60800.45851442,0.0003048,13]
[328483672,1717433437754,-422177.26261768,0.0003048,2]
[328483673,1717433437779,-44852.17769659,0.0003048,2]
[328483674,1717433437790,-1181.11751663,0.0003048,2]
[328483688,1717433440903,-1620.01643354,0.000299,2]
[328483689,1717433440913,-192.77,0.0002999,10]
[328483690,1717433440924,-1642.96356646,0.0003048,2]
[328483742,1717433445802,-313.42037375,0.00030404,2]
[328483743,1717433445812,-314.77467748,0.00030479,4]
[328483744,1717433445822,-574.38573156,0.0003048,2]
[328483746,1717433454847,18192.22579758,0.00014,2]
[328483749,1717433482925,31001.01586785,0.00014,2]
[328483764,1717433588825,20247.35363618,0.00014,2]
[328483765,1717433594955,289.58953642,0.00014,2]
[328483767,1717433610825,9288.78837675,0.00014,2]
[328483771,1717433983009,-714.70481135,0.00017259,2]
[328483772,1717434003078,150.0,0.00014,2]
[328483773,1717434003250,150.0,0.00014,2]
[328483774,1717434003444,150.0,0.00014,2]
[328483775,1717434003644,150.0,0.00014,2]
[328483776,1717434003849,150.0,0.00014,2]
[328483777,1717434004045,150.0,0.00014,2]
[328483778,1717434004467,150.0,0.00014,2]
[328483779,1717434004707,150.0,0.00014,2]
[328483780,1717434004943,150.0,0.00014,2]
[328483781,1717434005162,150.0,0.00014,2]
[328483782,1717434005412,150.0,0.00014,2]
[328483783,1717434005603,150.0,0.00014,2]
[328483784,1717434005813,150.0,0.00014,2]
[328483785,1717434006020,150.0,0.00014,2]
[328483786,1717434006233,150.0,0.00014,2]
[328483787,1717434006646,150.0,0.00014,2]
[328483788,1717434007095,150.0,0.00014,2]
[328483789,1717434007305,150.0,0.00014,2]
[328483790,1717434007496,150.0,0.00014,2]
[328483791,1717434007720,150.0,0.00014,2]
[328483792,1717434007899,150.0,0.00014,2]
[328483793,1717434008236,135.29518865,0.00014,2]
[328483794,1717434008261,102.52805449,0.00014,2]
[328483795,1717434032840,4000.0,0.00014,2]
[328483796,1717434058073,2818.93117646,0.00017259,2]
[328483797,1717434072848,4000.0,0.00014,2]
[328483798,1717434090849,4000.0,0.00014,2]
[328483799,1717434090872,2411.57678258,0.00014,2]
[328483800,1717434116844,1588.42321742,0.00014,2]
[328483801,1717434116866,4000.0,0.00014,2]
[328483802,1717434116886,508.69185289,0.00014,2]
[328483803,1717434136794,631.13658441,0.000105,2]
[328483804,1717434144843,2860.1715627,0.00014,2]
[328483805,1717434144866,1139.8284373,0.00014,2]
[328483806,1717434149195,41.24038624,0.00014,2]
[328483807,1717434149219,321.18746265,0.00014,2]
[328483808,1717434158845,4000.0,0.00014,2]
[328483809,1717434174860,4000.0,0.000105,2]
[328483810,1717434192850,4000.0,0.000105,2]
[328483811,1717434192874,2763.14768925,0.000105,2]
[328483812,1717434260580,452.89746239,0.00017259,2]
[328483987,1717434453312,155.0,0.00017259,2]
[328483992,1717434518649,-171.03,0.0002223,2]
[328483993,1717434531170,-194.90792632,0.0002297,2]
[328483994,1717434531195,-194.870506,0.00023562,2]
[328483995,1717434531216,-163.53,0.00023619,2]
[328483996,1717434531238,-75.66156768,0.000237,2]
[328484003,1717434631729,-452.89746239,0.00023459,2]
[328484004,1717434631739,-150.99,0.000237,2]
[328484005,1717434631749,-319.31198,0.000237,2]
[328484006,1717434631758,-141.51839712,0.00023836,2]
[328484007,1717434631770,-33.86505788,0.00023836,2]
[328484008,1717434631780,-159.86,0.00024384,2]
[328484009,1717434631791,-155.4,0.00024384,2]
[328484010,1717434631801,-294.48,0.00024384,2]
[328484011,1717434631812,-175.383455,0.00024658,2]
[328484012,1717434631822,-1250.0,0.00025,2]
[328484013,1717434631831,-499.99,0.00025205,2]